[Event "Vergani Le Terrazze-Elite 2019"]
[Site "Villorba"]
[Date "2019.01.04"]
[Round "5"]
[White "Andraisian, Zaven"]
[Black "Epishin, Vladimir"]
[Result "1/2-1/2"]
[ECO "B12"]
[WhiteElo "2604"]
[BlackElo "2563"]
[Annotator "ChessBase"]
[PlyCount "57"]
[EventDate "2019.01.02"]
[EventType "swiss"]
[EventCountry "ITA"]
[SourceTitle "playchess.com"]
[Source "ChessBase"]
[SourceQuality "1"]
[TimeControl "5400+30"]

1. e4 {[%emt 0:02:32]} c6 {[%emt 0:00:12]} 2. d4 {[%emt 0:00:13]} d5 {[%emt 0:00:08]} 3. e5 {[%emt 0:00:05]} c5 {[%emt 0:01:00]} 4. dxc5 {[%emt 0:00:13]} e6 {[%emt 0:00:06]} 5. Bd3 {[%emt 0:00:45]} Nd7 {[%emt 0:01:39]} 6. Nf3 {[%emt 0:00:36]} Nxc5 {[%emt 0:00:13]} 7. O-O {[%emt 0:00:59]} Ne7 {[%emt 0:02:06]} 8. Nc3 {[%emt 0:02:13]} Nxd3 {[%emt 0:10:35]} 9. Qxd3 {[%emt 0:00:19]} Bd7 {[%emt 0:00:38]} 10. Bd2 {[%emt 0:16:58]} Ng6 {[%emt 0:06:40]} 11. Rae1 {[%emt 0:00:40]} Bc5 {[%emt 0:02:51]} 12. Nd4 {[%emt 0:08:30]} O-O {[%emt 0:05:25]} 13. Nb3 {[%emt 0:05:27]} b6 {[%emt 0:05:53]} 14. Kh1 {[%emt 0:13:02]} Rc8 {[%emt 0:18:51]} 15. f4 {[%emt 0:01:13]} Re8 {[%emt 0:00:09]} 16. Ne2 {[%emt 0:01:54]} f6 {[%emt 0:05:30]} 17. exf6 {[%emt 0:01:09]} Qxf6 {[%emt 0:00:03]} 18. Bc3 {[%emt 0:00:24]} Qf5 {[%emt 0:00:34]} 19. Qg3 {[%emt 0:05:45]} Bd6 {[%emt 0:00:26]} 20. Nbd4 {[%emt 0:01:47]} Qh5 {[%emt 0:03:55]} 21. Qd3 {[%emt 0:07:40]} Rf8 {[%emt 0:03:23]} 22. Bd2 {[%emt 0:06:05]} Ne7 {[%emt 0:09:10]} 23. Ng3 {[%emt 0:03:30]} Qg6 {[%emt 0:00:53]} 24. Qe2 {[%emt 0:03:19]} Rf6 {[%emt 0:05:17]} 25. c3 {[%emt 0:01:59]} Re8 {[%emt 0:02:00]} 26. Qd1 {[%emt 0:08:41]} Ref8 {[%emt 0:03:52]} 27. Nge2 {[%emt 0:04:05]} Nf5 {[%emt 0:02:29]} 28. Nxf5 {[%emt 0:02:35]} Rxf5 {[%emt 0:00:17]} 29. Nd4 {[%emt 0:00:09]} 1/2-1/2

[Event "Vergani Le Terrazze-Elite 2019"]
[Site "Villorba"]
[Date "2019.01.04"]
[Round "5"]
[White "Ter-Sahakyan, Samvel"]
[Black "Velten, Paul"]
[Result "1/2-1/2"]
[ECO "C10"]
[WhiteElo "2574"]
[BlackElo "2496"]
[Annotator "ChessBase"]
[PlyCount "81"]
[EventDate "2019.01.02"]
[EventType "swiss"]
[EventCountry "ITA"]
[SourceTitle "playchess.com"]
[Source "ChessBase"]
[SourceQuality "1"]
[TimeControl "5400+30"]

1. e4 {[%emt 0:00:00]} e6 {[%emt 0:00:00]} 2. d4 {[%emt 0:00:00]} d5 {[%emt 0:00:04]} 3. Nc3 {[%emt 0:00:00]} Nc6 {[%emt 0:00:47]} 4. e5 {[%emt 0:05:21]} Nge7 {[%emt 0:00:19]} 5. Nf3 {[%emt 0:06:38]} Nf5 {[%emt 0:00:22]} 6. Ne2 {[%emt 0:00:12]} Bd7 {[%emt 0:02:36]} 7. c3 {[%emt 0:03:45]} f6 {[%emt 0:02:44]} 8. Ng3 {[%emt 0:02:10]} Nxg3 {[%emt 0:08:37]} 9. hxg3 {[%emt 0:01:03]} Qe7 {[%emt 0:00:19]} 10. Qc2 {[%emt 0:07:25]} h6 {[%emt 0:07:50]} 11. exf6 {[%emt 0:13:01]} gxf6 {[%emt 0:05:07]} 12. Nh4 {[%emt 0:01:19]} Rg8 {[%emt 0:00:13]} 13. Ng6 {[%emt 0:03:08]} Qf7 {[%emt 0:00:12]} 14. Nxf8 {[%emt 0:00:54]} Qxf8 {[%emt 0:00:12]} 15. Bxh6 {[%emt 0:02:05]} Qd6 {[%emt 0:00:09]} 16. Bg7 {[%emt 0:09:44]} O-O-O {[%emt 0:01:09]} 17. Bxf6 {[%emt 0:00:45]} Rdf8 {[%emt 0:00:06]} 18. Rh6 {[%emt 0:09:39]} Rf7 {[%emt 0:00:16]} 19. Bh4 {[%emt 0:09:35]} Qf8 {[%emt 0:00:20]} 20. Rh5 {[%emt 0:00:22]} e5 {[%emt 0:03:56]} 21. dxe5 {[%emt 0:00:24]} Bg4 {[%emt 0:00:04]} 22. Rg5 {[%emt 0:02:30]} Rxg5 {[%emt 0:02:27]} 23. Bxg5 {[%emt 0:00:04]} Nxe5 {[%emt 0:00:07]} 24. Be3 {[%emt 0:04:57]} Qh8 {[%emt 0:05:07]} 25. Qa4 {[%emt 0:02:15]} a6 {[%emt 0:01:29]} 26. Qd4 {[%emt 0:00:12]} Re7 {[%emt 0:00:35]} 27. Kd2 {[%emt 0:03:00]} Qe8 {[%emt 0:00:59]} 28. Re1 {[%emt 0:00:43]} Bf5 {[%emt 0:00:05]} 29. f3 {[%emt 0:04:58]} Bh7 {[%emt 0:00:41]} 30. Bf2 {[%emt 0:05:29]} Qg6 {[%emt 0:00:13]} 31. Bd3 {[%emt 0:00:45]} Qxd3+ {[%emt 0:01:30]} 32. Qxd3 {[%emt 0:00:03]} Bxd3 {[%emt 0:00:08]} 33. f4 {[%emt 0:01:44]} Be4 {[%emt 0:00:05]} 34. fxe5 {[%emt 0:00:03]} Rxe5 {[%emt 0:00:13]} 35. Rh1 {[%emt 0:01:38]} Bxg2 {[%emt 0:00:33]} 36. Rh8+ {[%emt 0:01:05]} Kd7 {[%emt 0:00:04]} 37. Be3 {[%emt 0:00:09]} Re7 {[%emt 0:00:30]} 38. g4 {[%emt 0:00:50]} Be4 {[%emt 0:00:14]} 39. g5 {[%emt 0:00:30]} Rh7 {[%emt 0:00:05]} 40. Rxh7+ {[%emt 0:00:21]} Bxh7 {[%emt 0:00:06]} 41. Bf2 {[%emt 0:00:36]} 1/2-1/2

[Event "Vergani Le Terrazze-Elite 2019"]
[Site "Villorba"]
[Date "2019.01.04"]
[Round "5"]
[White "Sonis, Francesco"]
[Black "Jobava, Baadur"]
[Result "1/2-1/2"]
[ECO "B41"]
[WhiteElo "2473"]
[BlackElo "2629"]
[Annotator "RC"]
[PlyCount "133"]
[EventDate "2019.01.02"]
[EventType "swiss"]
[EventCountry "ITA"]
[SourceTitle "playchess.com"]
[Source "ChessBase"]
[SourceQuality "1"]
[TimeControl "5400+30"]

1. e4 {[%emt 0:01:19]} c5 {[%emt 0:00:00]} 2. Nf3 {[%emt 0:00:04]} e6 {[%emt 0:00:00]} 3. d4 {[%emt 0:00:03]} cxd4 {[%emt 0:00:00]} 4. Nxd4 {[%emt 0:00:04]} a6 {[%emt 0:00:00]} 5. c4 {[%emt 0:00:05]} Nf6 {[%emt 0:00:29]} 6. Nc3 {[%emt 0:00:33]} Bb4 {[%emt 0:01:33]} 7. Qd3 {[%emt 0:00:06]} d6 {[%emt 0:12:56]} 8. Nc2 {[%emt 0:04:25]} Bxc3+ {[%emt 0:00:08]} 9. Qxc3 {[%emt 0:00:07]} e5 {[%emt 0:00:13]} 10. Bd3 {[%emt 0:00:16]} Be6 {[%emt 0:00:21]} 11. O-O {[%emt 0:00:55]} Nbd7 {[%emt 0:00:14]} 12. b3 {[%emt 0:11:57]} O-O {[%emt 0:00:37]} 13. Ba3 {[%emt 0:04:45]} Nc5 {[%emt 0:05:36]} 14. Bxc5 {[%emt 0:02:25]} dxc5 {[%emt 0:00:06]} 15. Rad1 {[%emt 0:00:03]} Nd7 {[%emt 0:03:56]} 16. Ne3 {[%emt 0:00:05]} Qg5 {[%emt 0:04:15]} 17. g3 {[%emt 0:09:22]} Bh3 {[%emt 0:09:15]} 18. Rfe1 {[%emt 0:00:03]} Rfd8 {[%emt 0:00:23]} 19. Bf1 {[%emt 0:01:50]} Bxf1 {[%emt 0:01:22]} 20. Kxf1 {[%emt 0:01:02]} Nf6 {[%emt 0:03:41]} 21. Nd5 {[%emt 0:00:47]} Nxd5 {[%emt 0:04:43]} 22. exd5 {[%emt 0:00:22]} f6 {[%emt 0:00:24]} 23. Qa5 {[%emt 0:07:03]} b5 {[%emt 0:00:51]} 24. cxb5 {[%emt 0:00:50]} axb5 {[%emt 0:00:06]} 25. Qxb5 {[%emt 0:00:04]} Rxa2 {[%emt 0:00:55]} 26. Qxc5 {[%emt 0:00:46]} Qf5 {[%emt 0:00:29]} 27. Kg1 {[%emt 0:09:57]} h5 {[%emt 0:05:41]} 28. Qb6 {[%emt 0:08:55]} Kh7 {[%emt 0:02:22]} 29. Rf1 {[%emt 0:00:39]} h4 {[%emt 0:00:20]} 30. Qb4 {[%emt 0:09:24]} hxg3 {[%emt 0:04:17]} 31. hxg3 {[%emt 0:02:40]} Kg6 {[%emt 0:05:28]} 32. d6 {[%emt 0:07:59]} Rh8 {[%emt 0:35:19]} 33. Qb7 {[%emt 0:04:29]} Ra7 {[%emt 0:00:00]} 34. Qg2 {[%emt 0:00:10]} Rb8 {[%emt 0:00:00]} 35. Qd5 {[%emt 0:01:26]} Rd7 {[%emt 0:00:00]} 36. Kg2 {[%emt 0:03:43]} Rbd8 {[%emt 0:00:00]} 37. Qf3 {[%emt 0:00:45]} Rb8 {[%emt 0:00:00]} 38. Qxf5+ {[%emt 0:02:31]} Kxf5 {[%emt 0:00:00]} 39. Rd3 {[%emt 0:00:03]} e4 {[%emt 0:00:00]} 40. Rd5+ {[%emt 0:01:44]} Ke6 {[%emt 0:00:00]} 41. Rd4 {[%emt 0:00:27]} Ke5 {[%emt 0:00:00]} 42. Rfd1 {[%emt 0:00:18]} Rxb3 {[%emt 0:00:00]} 43. Rd5+ {[%emt 0:00:18]} Ke6 {[%emt 0:00:00]} 44. g4 {[%emt 0:01:23]} g6 {[%emt 0:00:00]} 45. Ra5 {[%emt 0:01:40]} Rd3 {[%emt 0:00:00]} 46. Re1 {[%emt 0:00:54]} f5 {[%emt 0:00:00]} 47. Rh1 {[%emt 0:00:11]} f4 {[%emt 0:00:00]} 48. Ra4 {[%emt 0:01:13]} Kd5 {[%emt 0:00:00]} 49. Ra5+ {[%emt 0:01:12]} Kxd6 {[%emt 0:00:00]} 50. Ra6+ {[%emt 0:00:04]} Ke5 {[%emt 0:00:00]} 51. Rxg6 {[%emt 0:00:18]} Rf7 {[%emt 0:08:25]} 52. Rh5+ {[%emt 0:00:34]} Kd4 {[%emt 0:00:03]} 53. Ra5 {[%emt 0:00:04]} Kc3 {[%emt 0:01:05]} 54. Rc6+ {[%emt 0:02:15]} Kd2 {[%emt 0:00:39]} 55. Ra2+ {[%emt 0:00:58]} Ke1 {[%emt 0:00:03]} 56. Rc1+ {[%emt 0:01:26]} Rd1 {[%emt 0:00:01]} 57. Rcc2 {[%emt 0:00:29]} f3+ {[%emt 0:00:28]} 58. Kg3 {[%emt 0:00:05]} Kf1 {[%emt 0:00:14]} 59. Rc4 {[%emt 0:01:09]} Re1 {[%emt 0:00:04]} 60. Rc3 {[%emt 0:00:38]} e3 {[%emt 0:01:57]} 61. Rxe3 {[%emt 0:00:05]} Rxe3 {[%emt 0:00:04]} 62. fxe3 {[%emt 0:00:04]} f2 {[%emt 0:00:01]} 63. g5 {[%emt 0:00:04]} Ke1 {[%emt 0:00:28]} 64. Kg4 {[%emt 0:01:29]} Rd7 {[%emt 0:01:17]} 65. Rxf2 {[%emt 0:00:25]} Kxf2 {[%emt 0:00:04]} 66. g6 {[%emt 0:00:47]} Kxe3 {[%emt 0:00:04]} 67. Kf5 {[%emt 0:00:03]} 1/2-1/2

[Event "Vergani Le Terrazze-Elite 2019"]
[Site "Villorba"]
[Date "2019.01.04"]
[Round "5"]
[White "Prithu Gupta"]
[Black "Basso, Pier Luigi"]
[Result "1/2-1/2"]
[ECO "C60"]
[WhiteElo "2462"]
[BlackElo "2522"]
[Annotator "ChessBase"]
[PlyCount "119"]
[EventDate "2019.01.02"]
[EventType "swiss"]
[EventCountry "ITA"]
[SourceTitle "playchess.com"]
[Source "ChessBase"]
[SourceQuality "1"]
[TimeControl "5400+30"]

1. e4 {[%emt 0:00:00]} e5 {[%emt 0:09:26]} 2. Nf3 {[%emt 0:00:00]} Nc6 {[%emt 0:00:05]} 3. Bb5 {[%emt 0:00:00]} g6 {[%emt 0:00:55]} 4. c3 {[%emt 0:00:06]} a6 {[%emt 0:00:05]} 5. Bxc6 {[%emt 0:00:08]} dxc6 {[%emt 0:00:05]} 6. d4 {[%emt 0:00:06]} exd4 {[%emt 0:00:04]} 7. cxd4 {[%emt 0:00:05]} Bg4 {[%emt 0:00:05]} 8. Be3 {[%emt 0:01:42]} Bg7 {[%emt 0:03:01]} 9. Nc3 {[%emt 0:00:05]} Ne7 {[%emt 0:00:10]} 10. h3 {[%emt 0:04:24]} Bxf3 {[%emt 0:00:50]} 11. Qxf3 {[%emt 0:00:02]} O-O {[%emt 0:00:16]} 12. Rd1 {[%emt 0:08:52]} f5 {[%emt 0:00:49]} 13. e5 {[%emt 0:04:21]} f4 {[%emt 0:04:41]} 14. Bc1 {[%emt 0:00:05]} Nf5 {[%emt 0:01:42]} 15. Qxf4 {[%emt 0:05:33]} Bh6 {[%emt 0:06:04]} 16. Qe4 {[%emt 0:05:35]} Bxc1 {[%emt 0:00:07]} 17. Rxc1 {[%emt 0:00:01]} Qxd4 {[%emt 0:01:36]} 18. Qxd4 {[%emt 0:03:58]} Nxd4 {[%emt 0:00:02]} 19. O-O {[%emt 0:02:04]} Rf5 {[%emt 0:01:04]} 20. Rcd1 {[%emt 0:04:08]} Ne6 {[%emt 0:05:05]} 21. Rfe1 {[%emt 0:11:37]} Re8 {[%emt 0:01:17]} 22. Ne4 {[%emt 0:05:00]} Re7 {[%emt 0:01:02]} 23. Nd6 {[%emt 0:04:11]} cxd6 {[%emt 0:01:40]} 24. exd6 {[%emt 0:00:02]} Rd7 {[%emt 0:01:44]} 25. Rxe6 {[%emt 0:00:10]} Rd5 {[%emt 0:01:11]} 26. Rxd5 {[%emt 0:06:03]} cxd5 {[%emt 0:00:20]} 27. Re7 {[%emt 0:07:26]} Rxd6 {[%emt 0:09:02]} 28. Rxb7 {[%emt 0:00:20]} Rc6 {[%emt 0:00:10]} 29. Kf1 {[%emt 0:03:59]} Rc2 {[%emt 0:00:02]} 30. a3 {[%emt 0:01:53]} d4 {[%emt 0:04:46]} 31. Ke1 {[%emt 0:03:20]} d3 {[%emt 0:00:51]} 32. Rb3 {[%emt 0:05:11]} Re2+ {[%emt 0:01:07]} 33. Kf1 {[%emt 0:00:06]} Rd2 {[%emt 0:00:17]} 34. g3 {[%emt 0:02:38]} Kf7 {[%emt 0:01:38]} 35. Kg2 {[%emt 0:02:01]} Ke6 {[%emt 0:01:03]} 36. Kf3 {[%emt 0:00:07]} Re2 {[%emt 0:02:56]} 37. Rxd3 {[%emt 0:00:54]} Rxb2 {[%emt 0:00:03]} 38. Rc3 {[%emt 0:04:31]} a5 {[%emt 0:01:24]} 39. Rc7 {[%emt 0:01:03]} h6 {[%emt 0:03:18]} 40. Rc6+ {[%emt 0:02:13]} Kf7 {[%emt 0:00:14]} 41. Rc3 {[%emt 0:00:53]} Ke6 {[%emt 0:00:36]} 42. Kg2 {[%emt 0:00:25]} Ra2 {[%emt 0:00:10]} 43. h4 {[%emt 0:02:37]} h5 {[%emt 0:05:44]} 44. Kf3 {[%emt 0:00:18]} a4 {[%emt 0:01:05]} 45. Ke3 {[%emt 0:02:30]} Ke5 {[%emt 0:01:41]} 46. f3 {[%emt 0:00:45]} Ra1 {[%emt 0:02:14]} 47. Rc5+ {[%emt 0:01:11]} Kf6 {[%emt 0:00:10]} 48. Rc6+ {[%emt 0:00:29]} Kf5 {[%emt 0:00:11]} 49. Rc5+ {[%emt 0:00:16]} Kf6 {[%emt 0:00:06]} 50. Kf4 {[%emt 0:00:18]} Rxa3 {[%emt 0:00:07]} 51. Rc6+ {[%emt 0:00:04]} Kf7 {[%emt 0:00:09]} 52. Ra6 {[%emt 0:00:26]} Kg7 {[%emt 0:02:53]} 53. Ra7+ {[%emt 0:01:30]} Kf6 {[%emt 0:00:14]} 54. g4 {[%emt 0:00:32]} hxg4 {[%emt 0:00:05]} 55. fxg4 {[%emt 0:00:04]} g5+ {[%emt 0:01:02]} 56. hxg5+ {[%emt 0:00:06]} Kg6 {[%emt 0:00:02]} 57. Ra6+ {[%emt 0:00:10]} Kg7 {[%emt 0:00:05]} 58. g6 {[%emt 0:00:26]} Rb3 {[%emt 0:00:15]} 59. Rxa4 {[%emt 0:00:08]} Kxg6 {[%emt 0:00:05]} 60. Ke4 {[%emt 0:02:52]} 1/2-1/2

[Event "Vergani Le Terrazze-Elite 2019"]
[Site "Villorba"]
[Date "2019.01.04"]
[Round "5"]
[White "Horvath, Dominik"]
[Black "Blohberger, Felix"]
[Result "0-1"]
[ECO "A13"]
[WhiteElo "2417"]
[BlackElo "2450"]
[Annotator "ChessBase"]
[PlyCount "68"]
[EventDate "2019.01.02"]
[EventType "swiss"]
[EventCountry "ITA"]
[SourceTitle "playchess.com"]
[Source "ChessBase"]
[SourceQuality "1"]
[TimeControl "5400+30"]

1. c4 {[%emt 0:00:00]} e6 {[%emt 0:04:22]} 2. Nc3 {[%emt 0:00:12]} Bb4 {[%emt 0:00:26]} 3. Qb3 {[%emt 0:00:52]} a5 {[%emt 0:05:26]} 4. a3 {[%emt 0:00:49]} Bxc3 {[%emt 0:00:17]} 5. Qxc3 {[%emt 0:00:04]} Nf6 {[%emt 0:00:07]} 6. g3 {[%emt 0:03:21]} O-O {[%emt 0:00:16]} 7. Bg2 {[%emt 0:00:06]} d6 {[%emt 0:00:06]} 8. Nf3 {[%emt 0:08:25]} e5 {[%emt 0:13:54]} 9. d3 {[%emt 0:00:08]} c5 {[%emt 0:05:40]} 10. Bg5 {[%emt 0:02:22]} Nc6 {[%emt 0:00:55]} 11. O-O {[%emt 0:00:27]} h6 {[%emt 0:00:47]} 12. Bxf6 {[%emt 0:01:16]} Qxf6 {[%emt 0:00:07]} 13. e3 {[%emt 0:01:12]} Be6 {[%emt 0:04:08]} 14. Nd2 {[%emt 0:05:06]} Qe7 {[%emt 0:06:37]} 15. f4 {[%emt 0:01:12]} exf4 {[%emt 0:04:04]} 16. gxf4 {[%emt 0:02:29]} Qd7 {[%emt 0:03:37]} 17. Rf3 {[%emt 0:08:39]} Ne7 {[%emt 0:08:30]} 18. Ne4 {[%emt 0:01:59]} Kh8 {[%emt 0:02:21]} 19. Kh1 {[%emt 0:07:41]} f6 {[%emt 0:02:49]} 20. Rg1 {[%emt 0:01:12]} b6 {[%emt 0:02:27]} 21. Rg3 {[%emt 0:11:40]} d5 {[%emt 0:04:29]} 22. cxd5 {[%emt 0:06:20]} Nxd5 {[%emt 0:00:06]} 23. Qe1 {[%emt 0:00:19]} Rae8 {[%emt 0:02:02]} 24. Nc3 {[%emt 0:04:08]} Re7 {[%emt 0:04:03]} 25. Nxd5 {[%emt 0:03:57]} Bxd5 {[%emt 0:00:06]} 26. e4 {[%emt 0:00:10]} Bc6 {[%emt 0:01:38]} 27. Qd1 {[%emt 0:04:12]} Qd4 {[%emt 0:08:52]} 28. Qh5 {[%emt 0:01:09]} f5 {[%emt 0:01:05]} 29. Rg6 {[%emt 0:03:15]} Be8 {[%emt 0:02:42]} 30. Rxh6+ {[%emt 0:00:31]} gxh6 {[%emt 0:00:07]} 31. Qxh6+ {[%emt 0:00:02]} Kg8 {[%emt 0:00:07]} 32. e5 {[%emt 0:00:41]} Rg7 {[%emt 0:00:45]} 33. Qe6+ {[%emt 0:00:43]} Bf7 {[%emt 0:01:32]} 34. Qxf5 {[%emt 0:00:49]} Bd5 {[%emt 0:00:43]} 0-1

[Event "Vergani Le Terrazze-Elite 2019"]
[Site "Villorba"]
[Date "2019.01.04"]
[Round "5"]
[White "Carnicelli, Valerio"]
[Black "Repka, Christopher"]
[Result "1-0"]
[ECO "C45"]
[WhiteElo "2241"]
[BlackElo "2491"]
[Annotator "RC"]
[PlyCount "119"]
[EventDate "2019.01.02"]
[EventType "swiss"]
[EventCountry "ITA"]
[SourceTitle "playchess.com"]
[Source "ChessBase"]
[SourceQuality "1"]
[TimeControl "5400+30"]

1. e4 {[%emt 1:30:30]} e5 {[%emt 1:30:30]} 2. Nf3 {[%emt 0:00:30]} Nc6 {[%emt 0:00:30]} 3. d4 {[%emt 0:00:30]} exd4 {[%emt 0:00:30]} 4. Nxd4 {[%emt 0:00:30]} Nf6 {[%emt 0:00:30]} 5. Nxc6 {[%emt 0:00:30]} bxc6 {[%emt 0:00:30]} 6. e5 {[%emt 0:00:30]} Qe7 {[%emt 0:00:30]} 7. Qe2 {[%emt 0:00:30]} Nd5 {[%emt 0:00:30]} 8. c4 {[%emt 0:00:30]} Ba6 {[%emt 0:00:30]} 9. b3 {[%emt 0:00:30]} g6 {[%emt 0:00:30]} 10. g3 {[%emt 0:00:30]} Bg7 {[%emt 0:00:30]} 11. Bb2 {[%emt 0:00:30]} O-O {[%emt 0:00:30]} 12. Bg2 {[%emt 0:00:30]} Rfe8 {[%emt 0:00:30]} 13. O-O {[%emt 0:00:30]} Bxe5 {[%emt 0:00:30]} 14. Qxe5 {[%emt 0:00:30]} Qxe5 {[%emt 0:00:30]} 15. Bxe5 {[%emt 0:00:30]} Rxe5 {[%emt 0:00:30]} 16. cxd5 {[%emt 0:00:30]} Bxf1 {[%emt 0:00:30]} 17. Kxf1 {[%emt 0:00:30]} cxd5 {[%emt 0:00:30]} 18. Nc3 {[%emt 0:00:30]} c6 {[%emt 0:00:30]} 19. Na4 {[%emt 0:00:30]} Kf8 {[%emt 0:00:30]} 20. Nc5 {[%emt 0:00:30]} Ke8 {[%emt 0:00:30]} 21. Rd1 {[%emt 0:00:30]} Rb8 {[%emt 0:00:30]} 22. Rd4 {[%emt 0:00:30]} a5 {[%emt 0:00:30]} 23. Nd3 {[%emt 0:00:30]} Re7 {[%emt 0:00:30]} 24. Ra4 {[%emt 0:00:30]} Rb5 {[%emt 0:00:30]} 25. b4 {[%emt 0:00:30]} d6 {[%emt 0:00:30]} 26. Rxa5 {[%emt 0:00:30]} Rxa5 {[%emt 0:00:30]} 27. bxa5 {[%emt 0:00:30]} Ra7 {[%emt 0:00:30]} 28. Nb4 {[%emt 0:00:30]} Kd7 {[%emt 0:00:30]} 29. a6 {[%emt 0:00:30]} c5 {[%emt 0:00:30]} 30. Nxd5 {[%emt 0:00:30]} Rxa6 {[%emt 0:00:30]} 31. a4 {[%emt 0:00:30]} Kd8 {[%emt 0:00:30]} 32. Nc3 {[%emt 0:00:30]} Rb6 {[%emt 0:00:30]} 33. Bd5 {[%emt 0:00:30]} f5 34. Ke2 {[%emt 0:00:30]} Rb2+ {[%emt 0:01:00]} 35. Kd3 {[%emt 0:00:30]} Rxf2 {[%emt 0:00:30]} 36. a5 {[%emt 0:00:30]} Rf1 {[%emt 0:00:30]} 37. a6 {[%emt 0:00:30]} Ra1 {[%emt 0:00:30]} 38. Na2 {[%emt 0:00:30]} Kc7 {[%emt 0:00:30]} 39. a7 {[%emt 0:00:30]} c4+ {[%emt 0:00:30]} 40. Kxc4 {[%emt 0:00:30]} Rxa2 {[%emt 0:00:30]} 41. a8=Q {[%emt 0:00:30]} Rxa8 42. Bxa8 {[%emt 0:00:30]} Kd7 {[%emt 0:01:00]} 43. Bf3 {[%emt 0:00:30]} Ke6 {[%emt 0:00:30]} 44. Kd4 {[%emt 0:00:30]} g5 {[%emt 0:00:30]} 45. Bh5 {[%emt 0:00:30]} Kf6 {[%emt 0:00:30]} 46. h3 {[%emt 0:00:30]} g4 {[%emt 0:00:30]} 47. hxg4 {[%emt 0:00:30]} fxg4 {[%emt 0:00:30]} 48. Bxg4 {[%emt 0:00:30]} Kg5 {[%emt 0:00:30]} 49. Bh3 {[%emt 0:00:30]} h5 {[%emt 0:00:30]} 50. Kd5 {[%emt 0:00:30]} h4 {[%emt 0:00:30]} 51. g4 {[%emt 0:00:30]} Kf4 {[%emt 0:00:30]} 52. Kxd6 {[%emt 0:00:30]} Kg3 {[%emt 0:00:30]} 53. g5 {[%emt 0:00:30]} Kxh3 {[%emt 0:00:30]} 54. g6 {[%emt 0:00:30]} Kh2 {[%emt 0:00:30]} 55. g7 {[%emt 0:00:30]} h3 {[%emt 0:00:30]} 56. g8=Q {[%emt 0:00:30]} Kh1 {[%emt 0:00:30]} 57. Qd5+ {[%emt 0:00:30]} Kg1 {[%emt 0:00:30]} 58. Qd4+ {[%emt 0:00:30]} Kh1 {[%emt 0:00:30]} 59. Qf2 {[%emt 0:00:30]} h2 {[%emt 0:00:30]} 60. Qf1# {[%emt 0:00:30]} 1-0

[Event "Vergani Le Terrazze-Elite 2019"]
[Site "Villorba"]
[Date "2019.01.04"]
[Round "6"]
[White "Jobava, Baadur"]
[Black "Sadhwani, Raunak"]
[Result "1/2-1/2"]
[ECO "E48"]
[WhiteElo "2629"]
[BlackElo "2451"]
[Annotator "ChessBase"]
[PlyCount "161"]
[EventDate "2019.01.02"]
[EventType "swiss"]
[EventCountry "ITA"]
[SourceTitle "playchess.com"]
[Source "ChessBase"]
[SourceQuality "1"]
[TimeControl "5400+30"]

1. d4 {[%emt 0:00:00]} Nf6 {[%emt 0:00:00]} 2. c4 {[%emt 0:00:00]} e6 {[%emt 0:00:00]} 3. Nc3 {[%emt 0:00:00]} Bb4 {[%emt 0:00:00]} 4. e3 {[%emt 0:00:00]} O-O {[%emt 0:00:00]} 5. Bd3 {[%emt 0:00:00]} d5 {[%emt 0:00:01]} 6. cxd5 {[%emt 0:00:00]} exd5 {[%emt 0:00:06]} 7. Nge2 {[%emt 0:00:00]} Re8 {[%emt 0:00:18]} 8. O-O {[%emt 0:00:03]} Bd6 {[%emt 0:01:09]} 9. f3 {[%emt 1:34:27]} c5 {[%emt 0:01:22]} 10. Kh1 {[%emt 0:00:00]} Nbd7 {[%emt 0:04:01]} 11. Bd2 {[%emt 0:00:00]} b6 {[%emt 0:01:43]} 12. Rc1 {[%emt 0:00:00]} Bb7 {[%emt 0:01:21]} 13. Qe1 {[%emt 0:00:00]} a6 {[%emt 0:05:45]} 14. a3 {[%emt 0:00:00]} Nf8 {[%emt 0:03:03]} 15. Qf2 {[%emt 0:00:00]} Rc8 {[%emt 0:04:07]} 16. Bb1 {[%emt 0:00:00]} Ne6 {[%emt 0:05:13]} 17. Ba2 {[%emt 0:00:00]} Rc7 {[%emt 0:01:53]} 18. Rfd1 {[%emt 0:00:00]} Rce7 {[%emt 0:05:37]} 19. Ng3 {[%emt 0:00:00]} g6 {[%emt 0:02:55]} 20. Nce2 {[%emt 0:00:00]} cxd4 {[%emt 0:04:54]} 21. exd4 {[%emt 0:00:00]} Qb8 {[%emt 0:02:07]} 22. Re1 {[%emt 0:00:00]} Nf4 {[%emt 0:01:36]} 23. Nxf4 {[%emt 0:00:00]} Bxf4 {[%emt 0:00:15]} 24. Nf1 {[%emt 0:00:00]} Bxd2 {[%emt 0:01:03]} 25. Qxd2 {[%emt 0:00:00]} Rxe1 {[%emt 0:00:48]} 26. Rxe1 {[%emt 0:00:00]} Rxe1 {[%emt 0:01:20]} 27. Qxe1 {[%emt 0:00:00]} Qc7 {[%emt 0:06:15]} 28. Bb3 {[%emt 0:00:00]} Qf4 {[%emt 0:04:19]} 29. Qe3 {[%emt 0:00:00]} Qxe3 {[%emt 0:06:19]} 30. Nxe3 {[%emt 0:00:00]} Kf8 {[%emt 0:02:29]} 31. g4 {[%emt 0:00:00]} h6 {[%emt 0:00:26]} 32. h4 {[%emt 0:00:00]} Ke7 {[%emt 0:02:51]} 33. Kg2 {[%emt 0:00:00]} Kd6 {[%emt 0:00:25]} 34. Kg3 {[%emt 0:00:00]} Bc8 {[%emt 0:03:10]} 35. Bc2 {[%emt 0:00:00]} Ne8 {[%emt 0:03:09]} 36. f4 {[%emt 0:00:00]} Nc7 {[%emt 0:05:41]} 37. Bd3 {[%emt 0:00:00]} a5 {[%emt 0:06:19]} 38. Kf2 {[%emt 0:00:00]} Ne8 {[%emt 0:01:23]} 39. Kf3 {[%emt 0:00:00]} Ng7 {[%emt 0:00:58]} 40. Kg3 {[%emt 0:00:00]} Ne8 {[%emt 0:00:49]} 41. Be2 {[%emt 0:00:00]} Ng7 {[%emt 0:01:59]} 42. Bf3 {[%emt 0:00:00]} Be6 {[%emt 0:00:45]} 43. Bg2 {[%emt 0:00:00]} f5 {[%emt 0:01:45]} 44. g5 {[%emt 0:00:00]} h5 {[%emt 0:00:16]} 45. Kf2 {[%emt 0:00:00]} Ne8 {[%emt 0:00:13]} 46. Nc2 {[%emt 0:00:00]} Nc7 {[%emt 0:00:14]} 47. Ne1 {[%emt 0:00:00]} Bd7 {[%emt 0:01:31]} 48. Nd3 {[%emt 0:00:00]} Be8 {[%emt 0:00:39]} 49. Ke3 {[%emt 0:00:00]} Ne6 {[%emt 0:01:44]} 50. Ne5 {[%emt 0:00:00]} Nc7 {[%emt 0:00:07]} 51. Bf1 {[%emt 0:00:00]} Ke7 {[%emt 0:01:01]} 52. a4 {[%emt 0:00:00]} Kf8 {[%emt 0:01:08]} 53. Be2 {[%emt 0:00:00]} Kg7 {[%emt 0:00:52]} 54. Bd1 {[%emt 0:00:00]} Na6 {[%emt 0:01:12]} 55. Kd2 {[%emt 0:00:00]} Nc7 {[%emt 0:01:43]} 56. b4 {[%emt 0:00:00]} axb4 {[%emt 0:04:33]} 57. Bb3 {[%emt 0:00:00]} Kf8 {[%emt 0:01:11]} 58. Nd3 {[%emt 0:00:00]} Ke7 {[%emt 0:00:08]} 59. Nxb4 {[%emt 0:00:00]} Kd6 {[%emt 0:00:01]} 60. Nd3 {[%emt 0:00:00]} Ne6 {[%emt 0:00:11]} 61. Ke3 {[%emt 0:00:00]} Nc7 {[%emt 0:00:16]} 62. Ne5 {[%emt 0:00:00]} Ne6 {[%emt 0:00:20]} 63. Bd1 {[%emt 0:00:00]} Nc7 {[%emt 0:00:11]} 64. Be2 {[%emt 0:00:00]} Ke6 {[%emt 0:00:01]} 65. Bd1 {[%emt 0:02:06]} Kd6 {[%emt 0:00:07]} 66. Nd3 {[%emt 0:00:23]} Bd7 {[%emt 0:00:56]} 67. Nc1 {[%emt 0:00:03]} Be8 {[%emt 0:00:12]} 68. Kd2 {[%emt 0:00:07]} Ne6 {[%emt 0:00:31]} 69. Ne2 {[%emt 0:00:06]} Bd7 {[%emt 0:00:12]} 70. Ke3 {[%emt 0:00:27]} Be8 {[%emt 0:00:19]} 71. Ng3 {[%emt 0:00:09]} Ng7 {[%emt 0:00:22]} 72. Kd2 {[%emt 0:00:04]} Ne6 {[%emt 0:00:28]} 73. Ke3 {[%emt 0:00:44]} Ng7 {[%emt 0:00:10]} 74. Bc2 {[%emt 0:00:03]} Bd7 {[%emt 0:00:31]} 75. Kd2 {[%emt 0:00:05]} Ne6 {[%emt 0:00:50]} 76. Ne2 {[%emt 0:02:39]} Bc8 {[%emt 0:00:51]} 77. Kc3 {[%emt 0:03:06]} Ba6 {[%emt 0:01:45]} 78. Bd3 {[%emt 0:00:05]} Bxd3 {[%emt 0:00:52]} 79. Kxd3 {[%emt 0:00:06]} Kc6 {[%emt 0:00:06]} 80. Kc3 {[%emt 0:01:02]} Kb7 {[%emt 0:00:18]} 81. Kb3 {[%emt 0:02:02]} 1/2-1/2